[Event "Rapid Shavuot-A 2023"]
[Site "Ramat Gan"]
[Date "2023.05.25"]
[Round "5.6"]
[White "Sherman, Reem"]
[Black "Dvoirys, Semen I."]
[Result "0-1"]
[ECO "B80"]
[WhiteElo "2306"]
[BlackElo "2470"]
[Annotator "TA"]
[PlyCount "78"]
[EventDate "2023.05.19"]
[EventType "swiss"]
[EventCountry "ISR"]
[SourceTitle "playchess.com"]
[Source "ChessBase"]
[SourceQuality "1"]
[TimeControl "900+5"]

{[%evp 24,78,51,38,76,24,41,41,32,14,49,55,38,33,25,21,44,21,21,19,108,109,124,106,187,151,427,127,133,115,118,123,134,124,122,0,0,0,0,0,8,4,35,-27,-25,-305,0,-82,-82,-333,-87,-87,-86,-548,-493,-29998,-29999]} 1. e4 {[%emt 0:00:09]} c5 {[%emt 0:00:01]} 2. Nf3 {[%emt 0:00:02]} Nc6 {[%emt 0:00:18]} 3. d4 {[%emt 0:00:03]} cxd4 4. Nxd4 {[%emt 0:00:01]} e6 {[%emt 0:00:02]} 5. Nc3 {[%emt 0:00:07]} a6 {[%emt 0:00:02]} 6. g3 {[%emt 0:00:02]} Nf6 {[%emt 0:00:43]} 7. Bg2 {[%emt 0:00:07]} Qc7 {[%emt 0:02:03]} 8. O-O {[%emt 0:00:04]} Be7 {[%emt 0:00:13]} 9. Re1 {[%emt 0:00:40]} d6 {[%emt 0:00:26]} 10. Nxc6 {[%emt 0:00:03]} bxc6 {[%emt 0:00:02]} 11. e5 {[%emt 0:00:02]} dxe5 {[%emt 0:00:09]} 12. Rxe5 {[%emt 0:00:03]} O-O {[%emt 0:01:20]} 13. Re1 {[%emt 0:00:03]} e5 {[%emt 0:02:07] [#] B80: Sicilian Scheveningen: 6 g3 and 6 Be3, including English Attack.} 14. h3 $146 {[%emt 0:02:09]} (14. Qe2 $16) ({Predecessor:} 14. Qe2 Re8 15. Bg5 h6 16. Qxe5 Bd6 17. Qxe8+ Nxe8 18. Rxe8+ Bf8 19. Bf4 Qb7 20. Rd1 Bg4 21. Rxa8 Qxa8 {0-1 Mulawa,C (2149)-Slomczewski,M (2108) Warsaw Szansa op rapid 2022 (7)}) 14... Bf5 {[%emt 0:00:28]} 15. Qe2 {[%emt 0:00:15]} Rfe8 {[%emt 0:00:07] White is slightly better.} 16. a3 {[%emt 0:01:58]} (16. Qxe5 $2 Bd6 17. Qxf5 Rxe1+ 18. Kh2 Rae8 $19) 16... e4 {[%emt 0:01:02]} 17. Qc4 {[%emt 0:00:56]} (17. Bxe4 Nxe4 18. Nxe4 Bf8 $15) 17... Qb6 {[%emt 0:00:27]} 18. b4 {[%emt 0:01:08] Prevents Bc5.} (18. Nxe4 Bxe4 19. Bxe4 Bc5 $17) 18... a5 {[%emt 0:00:49]} 19. Be3 {[%emt 0:01:20]} (19. Bxe4 Nxe4 20. Nxe4 axb4 $17) (19. Nxe4 axb4 20. Be3 (20. Ng5 Bc5 $15) 20... Qb5 21. Qxb5 cxb5 22. Nxf6+ Bxf6 23. Bxa8 Rxa8 $15) 19... Qb7 {[%emt 0:00:05][%cal Ra5b4]} 20. Rab1 {[%emt 0:00:21]} (20. Bxe4 $2 {loses.} Bxe4 21. Nxe4 Nxe4 22. Qxe4 Bxb4 $19) 20... axb4 {[%emt 0:00:02]} 21. axb4 {[%emt 0:00:02][%cal Rc3e4]} Nd5 {[%emt 0:00:26]} (21... Qc8 $11) 22. Nxe4 $16 {[%emt 0:00:35]} Nxe3 {[%emt 0:01:11]} 23. Rxe3 {[%emt 0:00:03] aiming for Nc5.} Rab8 {[%emt 0:00:09]} (23... Be6 $16 24. Nc5 Bxc4 25. Nxb7 Ba2) 24. Nc5 {[%emt 0:00:46]} Qa8 {[%emt 0:01:15]} (24... Qb5 $16 25. Qxb5 cxb5) 25. Rbe1 $2 {[%emt 0:00:19]} (25. Na6 $18 {and the rest is easy.} Qa7 26. Bxc6) 25... Bf8 {[%emt 0:00:03]} 26. c3 {[%emt 0:00:56]} Rxe3 {[%emt 0:00:05]} 27. Rxe3 {[%emt 0:00:05]} ({But not} 27. fxe3 $6 Rd8 $14) 27... Rd8 {[%emt 0:00:10]} 28. Kh2 {[%emt 0:00:57]} Rd2 {[%emt 0:00:27]} 29. Re2 {[%emt 0:00:36]} ({White should try} 29. Rf3 $16 g6 30. Ne4) 29... Bd3 $11 {[%emt 0:00:05]} 30. Nxd3 {[%emt 0:01:05]} Rxe2 {[%emt 0:00:02]} 31. Bxc6 {[%emt 0:00:04]} Qa7 {[%emt 0:00:01]} 32. Kg2 {[%emt 0:00:35]} g6 {[%emt 0:00:03]} (32... Rd2 $5 {[%cal Ra7e3]}) 33. Bf3 {[%emt 0:00:21]} (33. Qf4 $14) 33... Rd2 {[%emt 0:00:26][%mdl 1024] Black has compensation.} 34. h4 $2 {[%emt 0:00:41][%mdl 8192]} (34. Qe4 $11 {and White stays safe.}) 34... h5 $2 {[%emt 0:00:10]} (34... Qe3 $19 35. Be4 Bd6 36. Qc8+ Kg7) 35. Qd5 {[%emt 0:00:16] [#]} (35. Bd5 $11) 35... Bg7 $1 $17 {[%emt 0:00:51] Black is more active.} 36. Qc4 {[%emt 0:00:33][%mdl 8192] [#]} (36. b5 $17 Qe3 37. Be4) 36... Rc2 $2 {[%emt 0:00:37]} (36... Qe3 $1 $19 {[%cal Re3d3]} 37. Be4 Kh7) 37. Qc8+ {[%emt 0:00:19]} Kh7 {[%emt 0:00:01] And now ...Qe3 would win.} 38. c4 $2 {[%emt 0:00:01][%mdl 8192]} (38. Nc5 $17) 38... Qd4 $19 {[%emt 0:00:05][%csl LRc4,LRd3][%mdl 64] Deflection, Double Attack} 39. Ne1 {[%emt 0:00:26]} (39. Qe8 $19 Qxd3 40. Qxf7) 39... Qxf2+ {[%emt 0:00:03] Never resign too early!   Weighted Error Value: White=1.02/Black=0.48} 0-1

[Event "Rapid Shavuot-A 2023"]
[Site "Ramat Gan"]
[Date "2023.05.25"]
[Round "5.7"]
[White "Yaniv, Ori"]
[Black "Bronstein, Or"]
[Result "1-0"]
[ECO "B46"]
[WhiteElo "2156"]
[BlackElo "2463"]
[Annotator "TA"]
[PlyCount "59"]
[EventDate "2023.05.19"]
[EventType "swiss"]
[EventCountry "ISR"]
[SourceTitle "playchess.com"]
[Source "ChessBase"]
[SourceQuality "1"]
[TimeControl "900+5"]

{[%evp 11,59,17,58,24,58,22,45,51,93,81,106,20,43,29,35,37,29,32,28,31,16,38,39,16,28,16,16,0,26,18,29,-70,0,0,0,0,22,22,60,0,354,337,545,545,29987,29988,29996,29997,29997,29998]} 1. e4 {[%emt 0:00:02]} c5 {[%emt 0:00:07]} 2. Nf3 {[%emt 0:00:02]} Nc6 {[%emt 0:00:49]} 3. d4 {[%emt 0:00:02]} cxd4 {[%emt 0:00:02]} 4. Nxd4 {[%emt 0:00:01]} e6 {[%emt 0:00:28]} 5. Nc3 {[%emt 0:00:08]} a6 {[%emt 0:00:05]} 6. g3 {[%emt 0:00:23]} Nf6 {[%emt 0:00:38]} 7. Bg2 {[%emt 0:00:03] B46: Sicilian: Taimanov: 5 Nc3 a6.} Be7 {[%emt 0:02:13]} 8. O-O {[%emt 0:00:05]} h5 {[%emt 0:00:02]} 9. Nxc6 {[%emt 0:01:07] White is slightly better.} bxc6 {[%emt 0:00:02]} 10. e5 {[%emt 0:00:01] White is more active.} Ng4 {[%emt 0:00:57] [#]} 11. Qe2 $146 {[%emt 0:00:18]} (11. Re1 $1 $16) ({Predecessor:} 11. Qd4 Qa5 12. Ne4 Qxe5 13. Qd3 Qf5 14. Qe2 d5 15. Nc3 a5 16. h3 Ba6 17. Qd1 {0-1 Bodnaruk,A (2423)-Elgersma,O (2298) Titled Tuesday intern op 29th Dec blitz 2020 (3)}) 11... a5 $1 $11 {[%emt 0:00:28]} 12. Na4 {[%emt 0:01:11]} Ba6 {[%emt 0:00:34]} 13. c4 {[%emt 0:00:01]} Qb8 {[%emt 0:02:10]} 14. Re1 {[%emt 0:00:32] Hoping for b3.} Bb4 {[%emt 0:00:24][%cal Oa6c4] [#] ...Bxc4! is the strong threat.} 15. Nc3 {[%emt 0:01:35]} Bc5 {[%emt 0:02:01]} 16. Ne4 {[%emt 0:00:26]} Bd4 {[%emt 0:00:54]} (16... Qxe5 $2 17. Bf4 Qf5 18. h3 $18) 17. Rb1 {[%emt 0:07:46] Threatens to win with b3.} (17. Nd6+ Kf8 18. Ne4 Qb4 $11) 17... Bxe5 {[%emt 0:01:43]} (17... Qxe5 $2 18. Bf4 Bxf2+ 19. Qxf2 $18 (19. Nxf2 Qxe2 20. Rxe2 Bxc4 $14) (19. Nxf2 Qxe2 20. Rxe2 Bxc4 $14)) 18. h3 {[%emt 0:00:47]} Nf6 {[%emt 0:00:01]} 19. Bg5 {[%emt 0:00:36]} (19. b3 $5) 19... Nxe4 {[%emt 0:01:49]} 20. Qxe4 {[%emt 0:00:02]} f6 {[%emt 0:00:00]} 21. f4 {[%emt 0:00:47]} (21. Rbd1 $11 fxg5 22. Qxe5 (22. Qg6+ Ke7 $17) 22... Qxe5 23. Rxe5) 21... Qa7+ {[%emt 0:00:26]} (21... Bxb2 $15 22. Re2 Qa7+ 23. Kh1 Bc3) 22. Kh2 {[%emt 0:00:12] Qg6+ would be deadly.} Bd4 {[%emt 0:00:23]} 23. Red1 $36 {[%emt 0:00:34][%mdl 2048] White has good play.} fxg5 {[%emt 0:00:31]} 24. Rxd4 {[%emt 0:00:08] aiming for f5.} O-O {[%emt 0:00:10]} (24... h4 {with more complications.} 25. gxh4 gxh4 26. f5 Qc7+) 25. Rbd1 {[%emt 0:00:12]} (25. fxg5 $14 Rae8 26. b3) 25... Rf7 $2 {[%emt 0:00:13][%mdl 8192]} (25... gxf4 $1 $11 {and Black is okay.} 26. Rxd7 Qe3 27. gxf4 (27. Qxc6 Qxg3+ 28. Kh1 f3 $17) 27... Qxe4 28. Bxe4 Bxc4) 26. fxg5 $18 {[%emt 0:00:14][%cal Bf4g5,Bg5g6][%mdl 32] Strongly threatening g6.} Re8 $2 {[%emt 0:00:00]} (26... Raf8 {is a better defense.} 27. g6 {[%mdl 64] Deflection} Rf6 28. Rxd7 Qb8) 27. g6 {[%emt 0:00:00]} Rfe7 {[%emt 0:00:00]} 28. Qe5 {[%emt 0:00:00][%csl LRa5,LRh5] White mates.} h4 {[%emt 0:00:03]} 29. Qh5 {[%emt 0:00:05]} hxg3+ {[%emt 0:00:01]} 30. Kh1 {[%emt 0:00:03] Weighted Error Value: White=0.20 (precise) /Black=0.59} 1-0

[Event "Rapid Shavuot-A 2023"]
[Site "Ramat Gan"]
[Date "2023.05.25"]
[Round "5.8"]
[White "Levin, Guy"]
[Black "Noy, Eyal"]
[Result "1/2-1/2"]
[ECO "D02"]
[WhiteElo "2424"]
[BlackElo "2141"]
[Annotator "TA"]
[PlyCount "233"]
[EventDate "2023.05.19"]
[EventType "swiss"]
[EventCountry "ISR"]
[SourceTitle "playchess.com"]
[Source "ChessBase"]
[SourceQuality "1"]
[TimeControl "900+5"]

{[%evp 58,232,0,0,0,-26,-29,-72,-54,-40,-34,-56,-14,-14,-14,-14,-8,-145,0,7,0,7,59,8,143,8,181,8,8,0,0,-14,-14,-14,-14,-16,-16,-16,-16,-16,-16,-16,-16,-18,-18,-18,-18,-18,-18,-18,0,-18,0,-12,-8,-8,-8,-8,-8,-8,-8,-8,-8,-8,-8,-8,-8,-8,-8,-8,-8,-8,-8,-8,-8,-8,-8,-8,0,-8,0,0,0,0,0,0,0,-8,0,0,0,0,0,0,8,-8,0,0,0,0,0,0,80,0,8,0,8,8,8,0,8,8,8,8,8,8,8,8,8,8,8,8,8,8,8,8,8,8,8,8,8,8,8,8,8,8,8,8,8,8,8,0,0,0,8,0,0,0,0,0,0,0,0,0,0,0,0,0,0,0,0,0,7,0,0,0,0,0,0,0,0,0,8,8,8,8,8]} 1. d4 {[%emt 0:00:06]} Nf6 {[%emt 0:00:01]} 2. Nf3 {[%emt 0:00:01]} e6 {[%emt 0:00:02]} 3. Bf4 {[%emt 0:00:01]} c5 {[%emt 0:00:10]} 4. e3 {[%emt 0:00:10]} Nc6 {[%emt 0:00:05]} 5. Nbd2 {[%emt 0:00:09]} d5 {[%emt 0:00:09]} 6. c3 {[%emt 0:00:01]} Bd6 {[%emt 0:00:54]} 7. Ne5 {[%emt 0:00:02]} O-O {[%emt 0:00:06]} 8. Bd3 {[%emt 0:00:31]} Qe7 {[%emt 0:00:35]} 9. h4 {[%emt 0:00:11]} h6 {[%emt 0:00:57]} 10. g4 {[%emt 0:00:52]} Nd7 {[%emt 0:00:42]} 11. Ndf3 {[%emt 0:00:10]} cxd4 {[%emt 0:00:51]} 12. exd4 {[%emt 0:00:13]} Bxe5 {[%emt 0:01:03]} 13. Nxe5 {[%emt 0:00:18]} Ndxe5 {[%emt 0:00:27]} 14. dxe5 {[%emt 0:00:01]} f6 {[%emt 0:00:11]} 15. exf6 {[%emt 0:00:05]} Qxf6 {[%emt 0:00:28]} 16. Be3 {[%emt 0:00:09]} Ne5 {[%emt 0:02:04]} 17. g5 {[%emt 0:00:05]} Nxd3+ {[%emt 0:00:19]} 18. Qxd3 {[%emt 0:00:05]} Qf3 {[%emt 0:00:02]} 19. Rg1 {[%emt 0:01:15]} h5 {[%emt 0:00:27]} 20. Kd2 {[%emt 0:00:53]} e5 {[%emt 0:00:45]} 21. Rg3 {[%emt 0:00:34]} Qe4 {[%emt 0:00:05]} 22. Qxe4 {[%emt 0:00:26]} dxe4 {[%emt 0:00:01]} 23. g6 {[%emt 0:00:01]} Bg4 {[%emt 0:00:13]} 24. Rag1 {[%emt 0:00:01]} Bf3 {[%emt 0:01:46]} 25. Rg5 {[%emt 0:00:07]} Rfe8 {[%emt 0:00:13]} 26. Rf5 {[%emt 0:00:18]} Re7 {[%emt 0:00:43]} 27. Rgg5 {[%emt 0:00:43]} Rae8 {[%emt 0:00:59]} 28. Bxa7 {[%emt 0:01:46]} Bg4 {[%emt 0:00:11]} 29. Rxh5 {[%emt 0:00:12]} Bxh5 {[%emt 0:00:13]} 30. Rxh5 {[%emt 0:00:01]} Re6 {[%emt 0:00:02]} 31. Bc5 {[%emt 0:00:21]} Rxg6 {[%emt 0:00:10]} 32. Ke3 {[%emt 0:00:03]} Rg4 {[%emt 0:00:42]} (32... b6 $5 {[%cal Rb6c5]} 33. Bb4 Rf6 $15) 33. Bd6 {[%emt 0:00:05]} Kf7 {[%emt 0:00:39]} 34. c4 {[%emt 0:00:58]} Kg6 {[%emt 0:00:35]} (34... Kf6 $5 {[%cal Rg4g1]}) 35. Rxe5 {[%emt 0:00:08]} Rxe5 {[%emt 0:00:01]} 36. Bxe5 {[%emt 0:00:01]} Rxh4 {[%emt 0:00:12]} 37. b4 {[%emt 0:00:08]} (37. Bg3 $11 Rh1 38. Kxe4) 37... Rg4 {[%emt 0:00:51]} ({Better is} 37... Kf5 $1 $17 {[%cal Rf5e5]} 38. Bd6 Rh3+ 39. Bg3 Rh1) 38. a4 {[%emt 0:00:17]} Kf5 {[%emt 0:00:01]} 39. Bg3 {[%emt 0:00:01]} Rg6 {[%emt 0:00:12]} (39... Ke6 $11) 40. a5 {[%emt 0:00:10]} ({White should try} 40. b5 $1 $14 Rh6 41. a5) 40... Rc6 {[%emt 0:00:11]} (40... Ra6 $1 $11) 41. c5 {[%emt 0:00:15]} (41. Kd4 $1 $16) 41... Rc8 $2 {[%emt 0:00:02] [#]} (41... Ra6 $11) 42. Bd6 $2 {[%emt 0:00:04]} (42. Kd4 $1 $18 {b5 is the strong threat.} Rd8+ 43. Bd6) 42... Ra8 $11 {[%emt 0:00:09]} 43. Bc7 {[%emt 0:00:01]} Rc8 {[%emt 0:00:05]} 44. Bb6 {[%emt 0:00:05]} Ke5 {[%emt 0:00:03]} 45. b5 {[%emt 0:00:07]} Kd5 $1 {[%emt 0:00:06]} 46. a6 {[%emt 0:00:02]} bxa6 {[%emt 0:00:03]} 47. bxa6 {[%emt 0:00:01]} Rf8 {[%emt 0:00:08]} (47... Ra8 $5 48. a7 $8 g5 $11) 48. a7 {[%emt 0:00:27]} Rf3+ {[%emt 0:00:01]} 49. Ke2 {[%emt 0:00:18]} Ra3 {[%emt 0:00:01]} 50. Kf1 {[%emt 0:00:09]} Ra2 {[%emt 0:00:04]} 51. Kg1 {[%emt 0:00:29]} Kc6 {[%emt 0:00:07]} 52. Kf1 {[%emt 0:00:01]} Kb7 {[%emt 0:00:03]} 53. Kg1 {[%emt 0:00:04]} Kc6 {[%emt 0:00:11]} 54. Kf1 {[%emt 0:00:02]} Kd5 {[%emt 0:00:06]} 55. Kg1 {[%emt 0:00:04]} Ke5 {[%emt 0:00:05]} (55... Kc6 56. Kf1 $17) 56. c6 {[%emt 0:00:20]} Kd6 {[%emt 0:00:03]} 57. c7 {[%emt 0:00:02]} Kd7 {[%emt 0:00:01]} 58. Kg2 {[%emt 0:00:09]} e3 {[%emt 0:00:10]} 59. Bxe3 {[%emt 0:00:03]} Kxc7 {[%emt 0:00:02]} 60. Kg3 {[%emt 0:00:01]} Kd7 {[%emt 0:00:04]} 61. Kg4 {[%emt 0:00:03]} Ke6 {[%emt 0:00:01]} 62. Kg5 $1 {[%emt 0:00:01]} Kf7 {[%emt 0:00:03]} 63. Kf5 {[%emt 0:00:06]} Ra5+ {[%emt 0:00:02]} 64. Ke4 {[%emt 0:00:01]} Ke6 {[%emt 0:00:01]} 65. Kf4 {[%emt 0:00:09]} g6 {[%emt 0:00:22]} 66. Bb6 {[%emt 0:00:10]} Ra6 {[%emt 0:00:08]} 67. Kg5 {[%emt 0:00:03]} Kd5 {[%emt 0:00:05]} 68. f4 {[%emt 0:00:14]} Ke4 {[%emt 0:00:04]} (68... Rxb6 69. a8=Q+ (69. a8=B+ Kd4 $11) 69... Ke6 70. Qe8+ Kd5 71. Qe5+ Kc4 72. Qc7+ Kb5 73. Qxb6+ Kxb6 74. Kxg6) 69. Kg4 {[%emt 0:00:11]} Ra1 {[%emt 0:00:06]} (69... Rxb6 70. a8=Q+ (70. a8=B+ Kd4 $11) 70... Kd4 71. Qd8+ Kc5 72. Qxb6+ Kxb6 73. Kg5 Kc7 74. Kxg6) (69... Ra3 $5) 70. Kg5 {[%emt 0:00:01]} Ra6 {[%emt 0:00:02]} 71. Kg4 {[%emt 0:00:10]} Kd3 {[%emt 0:00:03]} (71... Rxb6 {gets mated.} 72. a8=Q+ (72. a8=B+ Kd4 $11) 72... Kd4 73. Qd8+ Kc5 74. Qxb6+ Kxb6 75. Kg5 Kc5 76. Kxg6) (71... Kd5 $5) 72. Kf3 {[%emt 0:00:04]} Ra3 {[%emt 0:00:06]} 73. Bc5 {[%emt 0:00:07]} Ra1 {[%emt 0:00:01]} 74. Kg4 {[%emt 0:00:06]} Ke4 {[%emt 0:00:12]} 75. Kg5 $1 {[%emt 0:00:02]} Ra5 {[%emt 0:00:06]} 76. Kg4 {[%emt 0:00:13]} (76. Kxg6 {simplifies} Kxf4 77. Kf6 Rxa7 78. Bxa7 Kf3 79. Kf7) 76... Ra4 {[%emt 0:00:02]} 77. Bb6 {[%emt 0:00:05]} Ra6 {[%emt 0:00:07]} 78. Kg5 {[%emt 0:00:01]} Kd5 {[%emt 0:00:03]} 79. Bg1 {[%emt 0:00:11]} Ra2 {[%emt 0:00:07] [#]} (79... Ra1 $11 80. Bf2 Ke4) 80. Bf2 {[%emt 0:00:04]} (80. Kxg6 $1 $16 {White threatens f5 and mate.} Kc6 81. Kf5) 80... Ke4 {[%emt 0:00:04]} 81. Bc5 {[%emt 0:00:07]} Kf3 {[%emt 0:00:06]} 82. Bb6 {[%emt 0:00:08]} Ra6 {[%emt 0:00:04]} 83. Bc5 {[%emt 0:00:04]} Ra5 {[%emt 0:00:06]} 84. f5 $1 {[%emt 0:00:10]} gxf5 {[%emt 0:00:04]} (84... Rxa7 {simplifies} 85. Bxa7 gxf5 86. Kxf5 Kg2) 85. Bb6 {[%emt 0:00:01]} Ra6 {[%emt 0:00:07]} (85... Rxa7 {simplifies} 86. Bxa7 Ke4 87. Bc5 f4) 86. Kxf5 {[%emt 0:00:02]} Ke2 {[%emt 0:00:03]} (86... Kg2 {simplifies} 87. Ke5 Rxa7 88. Bxa7 Kf3) 87. Ke4 $1 {[%emt 0:00:02]} Kd2 {[%emt 0:00:02]} 88. Kd5 {[%emt 0:00:01]} Kc3 {[%emt 0:00:03]} (88... Rxa7 {simplifies} 89. Bxa7 Ke2 90. Bc5 Kf1) 89. Kc6 {[%emt 0:00:02]} (89. Kc5 {simplifies} Rxa7 90. Bxa7 Kd3 91. Bb8) 89... Kc4 {[%emt 0:00:03]} (89... Rxa7 {simplifies} 90. Bxa7 Kb3 91. Be3 Ka4) 90. Kb7 {[%emt 0:00:02]} (90. Kc7 {simplifies} Kb5 91. Bd4 Rxa7+ 92. Bxa7 Kb4 93. Kc6) 90... Kb5 {[%emt 0:00:01]} (90... Rxa7+ {simplifies} 91. Kxa7 Kb3 92. Bd4 Kc2) 91. Bg1 {[%emt 0:00:05]} Rg6 {[%emt 0:00:05]} 92. Bd4 {[%emt 0:00:21]} ({Much weaker is} 92. a8=N Rxg1 93. Nc7+ Kc5 $15) 92... Re6 {[%emt 0:00:09]} 93. Bc5 {[%emt 0:00:27]} (93. a8=Q $5 Re7+ $8 94. Kc8 Re8+ 95. Kb7 Rxa8 96. Kxa8 $11) 93... Rg6 {[%emt 0:00:10]} 94. Bd6 {[%emt 0:00:19]} Rg7+ {[%emt 0:00:09]} 95. Bc7 {[%emt 0:00:04]} Rg8 {[%emt 0:00:00]} 96. Be5 {[%emt 0:00:12]} (96. a8=Q {simplifies} Rxa8 97. Kxa8 Kc4 98. Be5) 96... Rf8 {[%emt 0:00:05]} 97. Bd6 {[%emt 0:00:05]} Rf7+ {[%emt 0:00:07]} 98. Bc7 {[%emt 0:00:02]} (98. Kb8 {simplifies} Rxa7 99. Kxa7 Ka4 100. Be7) 98... Rf8 {[%emt 0:00:01]} 99. Bh2 {[%emt 0:00:08]} (99. a8=Q {simplifies} Rxa8 100. Kxa8 Kc6 101. Kb8) 99... Rf7+ {[%emt 0:00:05]} 100. Bc7 {[%emt 0:00:01]} Rf8 {[%emt 0:00:00]} 101. a8=N {[%emt 0:00:08]} Kc5 {[%emt 0:00:11]} 102. Nb6 $1 {[%emt 0:00:03]} Rf7 {[%emt 0:00:03]} 103. Na4+ {[%emt 0:00:01]} Kb5 {[%emt 0:00:05]} 104. Nc3+ $1 {[%emt 0:00:02]} Kc4 {[%emt 0:00:01]} 105. Ne4 {[%emt 0:00:01]} Kd5 {[%emt 0:00:03]} 106. Nc3+ {[%emt 0:00:01]} Kd4 {[%emt 0:00:02]} 107. Nb5+ $1 {[%emt 0:00:01]} Kc5 {[%emt 0:00:05]} 108. Nd6 {[%emt 0:00:03]} Rh7 {[%emt 0:00:02]} 109. Ne4+ {[%emt 0:00:01]} Kc4 {[%emt 0:00:04]} 110. Nd6+ {[%emt 0:00:02]} Kd5 {[%emt 0:00:01]} 111. Ne8 {[%emt 0:00:02]} Rf7 {[%emt 0:00:05]} 112. Kb6 {[%emt 0:00:03]} Re7 {[%emt 0:00:05]} 113. Nf6+ {[%emt 0:00:01]} Ke6 {[%emt 0:00:05]} 114. Ne4 {[%emt 0:00:02]} Kd7 {[%emt 0:00:05]} 115. Nc5+ $1 {[%emt 0:00:02]} Kc8 {[%emt 0:00:06]} 116. Bd6 {[%emt 0:00:03]} Rc7 {[%emt 0:00:07]} 117. Bxc7 {[%emt 0:00:08]} 1/2-1/2

[Event "Rapid Shavuot-A 2023"]
[Site "Ramat Gan"]
[Date "2023.05.25"]
[Round "5.9"]
[White "Poleg, Dan"]
[Black "Mesropov, Konstantin"]
[Result "1/2-1/2"]
[ECO "A44"]
[WhiteElo "2193"]
[BlackElo "2437"]
[Annotator "TA"]
[PlyCount "77"]
[EventDate "2023.05.19"]
[EventType "swiss"]
[EventCountry "ISR"]
[SourceTitle "playchess.com"]
[Source "ChessBase"]
[SourceQuality "1"]
[TimeControl "900+5"]

{[%evp 10,77,66,47,52,47,47,45,51,41,53,28,45,28,37,31,40,22,33,19,45,27,27,27,27,9,15,0,14,-84,-85,-91,-83,-268,-244,-252,-203,-212,-212,-216,-210,-206,-178,-183,-118,-112,0,-138,-130,-138,-45,-161,-161,-161,-161,-210,0,0,0,0,0,0,119,0,0,0,115,0,0,0]} 1. d4 {[%emt 0:00:03]} c5 {[%emt 0:00:05]} 2. d5 {[%emt 0:00:05]} e5 {[%emt 0:00:02]} 3. e4 {[%emt 0:00:02]} d6 {[%emt 0:00:02]} 4. c4 {[%emt 0:00:02]} Be7 {[%emt 0:00:01]} 5. Nc3 {[%emt 0:00:07]} Bg5 {[%emt 0:00:05]} 6. Nge2 {[%emt 0:00:44]} Bxc1 {[%emt 0:00:05] A44: Semi-Benoni.} 7. Rxc1 {[%emt 0:00:11]} Ne7 {[%emt 0:00:07]} 8. Ng3 {[%emt 0:00:16]} O-O {[%emt 0:00:07] White is slightly better.} 9. Bd3 {[%emt 0:00:30]} Nd7 {[%emt 0:00:44] [#]} 10. h4 $146 {[%emt 0:01:01]} ({Predecessor:} 10. O-O Ng6 11. Nce2 Nf4 12. Nxf4 exf4 13. Nf5 Ne5 14. g3 f3 15. Re1 Qf6 16. Rc3 {0-1 Mohnblatt,D (1903)-Weill,S (2090) FRA-chT2B 0506 2005 (6.8)}) 10... Nf6 {[%emt 0:01:04]} 11. h5 {[%emt 0:00:41]} h6 {[%emt 0:00:35]} 12. Qc2 {[%emt 0:00:14]} a6 {[%emt 0:00:11]} 13. a3 {[%emt 0:00:07]} Bd7 {[%emt 0:00:15]} 14. f3 {[%emt 0:00:36]} Nh7 {[%emt 0:00:38][%cal Ob7b5]} 15. Nd1 {[%emt 0:00:44]} b5 {[%emt 0:00:05][%cal Bb7b5,Bb5b4][%mdl 32]} 16. Ne3 {[%emt 0:00:03]} Rb8 {[%emt 0:00:11]} 17. Qd2 {[%emt 0:00:43]} b4 {[%emt 0:00:47]} 18. Kf2 {[%emt 0:00:54]} a5 {[%emt 0:00:13][%cal Ba6a5,Ba5b4][%mdl 32]} 19. Nc2 {[%emt 0:01:05]} (19. Bc2 $11) 19... f5 $17 {[%emt 0:00:40]} 20. exf5 {[%emt 0:00:31]} Nxf5 {[%emt 0:00:05]} 21. Nxf5 {[%emt 0:00:05]} (21. Bxf5 $17 {was forced.} Bxf5 22. axb4 Bxc2 23. Qxc2 Rxb4 24. b3) 21... Bxf5 $19 {[%emt 0:00:02]} 22. axb4 {[%emt 0:00:31]} axb4 {[%emt 0:00:41]} 23. Bxf5 Rxf5 {[%emt 0:00:03]} 24. Ne3 {[%emt 0:00:47]} Rf4 {[%emt 0:00:08]} 25. g3 {[%emt 0:00:13]} Rf7 {[%emt 0:00:45] And now ...Ng5 would win.} 26. Kg2 {[%emt 0:00:07]} Qg5 {[%emt 0:00:27]} (26... Qe7 $19 {Strongly threatening ...Ng5.} 27. Rcf1 Rbf8) 27. Rh4 $17 {[%emt 0:00:48]} Rf4 {[%emt 0:02:20]} (27... Qe7 $17 {...Ng5 would be deadly.} 28. Ng4 Ng5) 28. Rxf4 {[%emt 0:02:44]} (28. Rg4 $1 $11 Rxg4 29. fxg4) 28... exf4 {[%emt 0:00:02]} 29. Ng4 {[%emt 0:00:02]} Rf8 {[%emt 0:00:39]} ({Black should try} 29... Qxh5 $17 {aiming for ...fxg3.} 30. Qxf4 Ng5) 30. Re1 {[%emt 0:01:47]} (30. Rh1 $1 $15) 30... Qxh5 $19 {[%emt 0:03:31]} (30... fxg3 31. Qxg5 Nxg5 32. Re3 $11) 31. gxf4 {[%emt 0:00:03]} Nf6 $1 {[%emt 0:00:27]} 32. Qe2 {[%emt 0:00:21]} (32. Nxf6+ $142 Rxf6 33. Re6) 32... Kh7 $2 {[%emt 0:00:52]} (32... Kh8 $1 $19 {Threatens to win with ...Re8.} 33. Rg1 Re8) 33. Qe6 $11 {[%emt 0:00:17]} Qg6 {[%emt 0:00:43] White must now prevent ...Re8.} 34. Qxd6 {[%emt 0:00:28]} Qc2+ {[%emt 0:00:43]} 35. Nf2 {[%emt 0:00:11]} Qg6+ {[%emt 0:00:15] [#]} (35... Ra8 $11 {keeps the balance.}) 36. Ng4 {[%emt 0:00:01] White is more active.} Qc2+ {[%emt 0:00:05]} 37. Nf2 {[%emt 0:00:12]} (37. Kh3 $11 Qb3 38. Ne5 (38. Qxf8 {is a self mate.} Qxf3+ 39. Kh2 Nxg4+ 40. Kg1 Qg3+ 41. Kh1 Qh2#) (38. Re3 Qxc4 39. Qxf8 Qf1+ 40. Kh4 Qh1+ 41. Kg3 Qg1+ 42. Kh3 Qf1+ 43. Kh4 Qh1+ 44. Kg3 Qg1+ 45. Kh3 Qf1+ $11)) 37... Qg6+ $16 {[%emt 0:00:12] [#]} 38. Ng4 {[%emt 0:00:03]} Qc2+ $11 {[%emt 0:00:05]} 39. Nf2 {[%emt 0:00:03] And White is the lucky defender.   Weighted Error Value: White=0.36/Black=0.26 (precise)} 1/2-1/2